fUSD/lending_fUSD_20240624
["ID","MTS","AMOUNT","RATE_DAILY","PERIOD"]
[330293522,1719234690447,-500.0,0.00022739,4]
[330293523,1719234690456,-500.0,0.00022739,4]
[330293524,1719234690465,-500.0,0.00022739,4]
[330293525,1719234690475,-500.0,0.00022739,4]
[330293526,1719234690484,-500.0,0.00022739,4]
[330293527,1719234690494,-500.0,0.00022739,4]
[330293528,1719234690503,-510.58,0.00022739,4]
[330293529,1719234690512,-500.0,0.00022739,4]
[330293530,1719234690522,-500.0,0.00022739,4]
[330293531,1719234690531,-500.0,0.00022739,4]
[330293532,1719234690545,-500.0,0.00022739,4]
[330293533,1719234690555,-500.0,0.00022739,4]
[330293534,1719234690565,-500.0,0.00022739,4]
[330293535,1719234690575,-389.16,0.00022739,4]
[330293536,1719234690585,-500.0,0.00022739,4]
[330293537,1719234690595,-500.0,0.00022739,4]
[330293538,1719234690604,-500.0,0.00022739,4]
[330293539,1719234690613,-500.0,0.00022739,4]
[330293540,1719234690626,-610.4,0.00022739,4]
[330293541,1719234690636,-500.0,0.00022739,4]
[330293542,1719234690645,-500.0,0.00022739,4]
[330293543,1719234690659,-500.0,0.00022739,4]
[330293544,1719234690669,-578.19,0.00022739,4]
[330293545,1719234690678,-500.0,0.00022739,4]
[330293546,1719234690687,-500.0,0.00022739,4]
[330293547,1719234690697,-500.0,0.00022739,4]
[330293548,1719234690706,-500.0,0.00022739,4]
[330293549,1719234690716,-500.0,0.00022739,4]
[330293550,1719234690725,-500.0,0.00022739,4]
[330293551,1719234690734,-955.98,0.00022739,4]
[330293552,1719234690743,-500.0,0.00022739,4]
[330293553,1719234690753,-500.0,0.00022739,4]
[330293554,1719234690762,-500.0,0.00022739,4]
[330293555,1719234690774,-500.0,0.00022739,4]
[330293556,1719234690784,-500.0,0.00022739,4]
[330293557,1719234690793,-500.0,0.00022739,4]
[330293558,1719234690803,-500.0,0.00022739,4]
[330293559,1719234690812,-500.0,0.00022739,4]
[330293560,1719234690821,-500.0,0.00022739,4]
[330293561,1719234690830,-500.0,0.00022739,4]
[330293562,1719234690840,-500.0,0.00022739,4]
[330293563,1719234690849,-345.0,0.00022739,4]
[330293564,1719234690859,-500.0,0.00022739,4]
[330293565,1719234690868,-500.0,0.00022739,4]
[330293566,1719234690878,-500.0,0.00022739,4]
[330293567,1719234690888,-500.0,0.00022739,4]
[330293568,1719234690898,-500.0,0.00022739,4]
[330293569,1719234690909,-721.78,0.00022739,4]
[330293570,1719234690918,-500.0,0.00022739,4]
[330293571,1719234690928,-500.0,0.00022739,4]
[330293572,1719234690937,-500.0,0.00022739,4]
[330293573,1719234690946,-500.0,0.00022739,4]
[330293574,1719234690956,-500.0,0.00022739,4]
[330293575,1719234690965,-500.0,0.00022739,4]
[330293576,1719234690975,-500.0,0.00022739,4]
[330293577,1719234690984,-500.0,0.00022739,4]
[330293578,1719234690994,-500.0,0.00022739,4]
[330293579,1719234691003,-961.17,0.00022739,4]
[330293580,1719234691013,-500.0,0.00022739,4]
[330293581,1719234691023,-500.0,0.00022739,4]
[330293582,1719234691033,-500.0,0.00022739,4]
[330293583,1719234691042,-500.0,0.00022739,4]
[330293584,1719234691052,-500.0,0.00022739,4]
[330293585,1719234691061,-559.62,0.00022739,4]
[330293586,1719234691071,-500.0,0.00022739,4]
[330293587,1719234691080,-500.0,0.00022739,4]
[330293588,1719234691090,-503.91,0.00022739,4]
[330293589,1719234691099,-500.0,0.00022739,4]
[330293590,1719234691109,-641.94,0.00022739,4]
[330293591,1719234691118,-231.45,0.00022739,4]
[330293592,1719234691128,-946.9,0.00022739,4]
[330293593,1719234691137,-2789.32,0.00022739,4]
[330293594,1719234691146,-1021.32,0.00022739,4]
[330293595,1719234691157,-500.0,0.00022739,4]
[330293596,1719234691167,-200.0,0.00022739,7]
[330293597,1719234691177,-500.0,0.00022739,4]
[330293598,1719234691186,-609.74,0.00022739,4]
[330293599,1719234691196,-2129.68,0.00022739,4]
[330293600,1719234691206,-523.1,0.00022739,4]
[330293601,1719234691216,-604.89,0.00022739,4]
[330293602,1719234691225,-500.0,0.00022739,4]
[330293603,1719234691235,-500.0,0.00022739,4]
[330293604,1719234691244,-539.45,0.00022739,4]
[330293605,1719234691254,-5685.35,0.00022739,4]
[330293606,1719234691263,-8388.92,0.00022739,4]
[330293607,1719234691272,-788.23,0.00022739,4]
[330293608,1719234691282,-931.76,0.00022739,4]
[330293609,1719234691291,-558.11,0.00022739,4]
[330293610,1719234691301,-589.44,0.00022739,4]
[330293611,1719234691310,-500.0,0.00022739,4]
[330293612,1719234691320,-500.0,0.00022739,4]
[330293613,1719234691469,-500.0,0.00022739,4]
[330293614,1719234691498,-598.81,0.00022739,4]
[330293615,1719234691507,-515.94,0.00022739,4]
[330293616,1719234691516,-1333.15,0.00022739,4]
[330293617,1719234691525,-1076.06,0.00022739,4]
[330293618,1719234691535,-552.26,0.00022739,4]
[330293619,1719234691548,-500.0,0.00022739,4]
[330293620,1719234691558,-500.0,0.00022739,4]
[330293621,1719234691567,-507.36,0.00022739,4]
[330293622,1719234691576,-1022.66,0.00022739,4]
[330293623,1719234691587,-500.0,0.00022739,4]
[330293624,1719234691596,-4095.82,0.00022739,4]
[330293625,1719234691605,-500.0,0.00022739,4]
[330293626,1719234691615,-670.27,0.00022739,4]
[330293627,1719234691624,-500.0,0.00022739,4]
[330293628,1719234691633,-587.18,0.00022739,4]
[330293629,1719234691642,-500.0,0.00022739,4]
[330293630,1719234691651,-500.0,0.00022739,4]
[330293631,1719234691662,-599.34,0.00022739,4]
[330293632,1719234691673,-500.0,0.00022739,4]
[330293633,1719234691688,-1195.25,0.00022739,4]
[330293634,1719234691710,-833.51,0.00022739,4]
[330293635,1719234691722,-500.0,0.00022739,4]
[330293636,1719234691731,-675.38,0.00022739,4]
[330293637,1719234691740,-1029.66,0.00022739,4]
[330293638,1719234691749,-500.0,0.00022739,4]
[330293639,1719234691758,-599.32,0.00022739,4]
[330293640,1719234691769,-500.0,0.00022739,4]
[330293641,1719234691778,-751.48,0.00022739,4]
[330293642,1719234691788,-504.75,0.00022739,4]
[330293643,1719234691797,-622.88,0.00022739,4]
[330293644,1719234691806,-812.04,0.00022739,4]
[330293645,1719234691815,-449.64225324,0.00022739,4]
[330293646,1719234691825,-1838.7,0.00022739,4]
[330293647,1719234691835,-732.02,0.00022739,4]
[330293648,1719234691844,-500.0,0.00022739,4]
[330293649,1719234691853,-548.92,0.00022739,4]
[330293650,1719234691863,-500.0,0.00022739,4]
[330293651,1719234691872,-1104.05,0.00022739,4]
[330293652,1719234691881,-790.0,0.00022739,4]
[330293653,1719234691891,-500.0,0.00022739,4]
[330293654,1719234691900,-500.0,0.00022739,4]
[330293655,1719234691913,-950.44,0.00022739,4]
[330293656,1719234691923,-775.48,0.00022739,4]
[330293657,1719234691932,-3276.0,0.00022739,4]
[330293658,1719234691942,-713.29,0.00022739,4]
[330293659,1719234691955,-500.0,0.00022739,4]
[330293660,1719234691964,-803.86,0.00022739,4]
[330293661,1719234691973,-832.62,0.00022739,4]
[330293662,1719234691983,-832.67,0.00022739,4]
[330293663,1719234691993,-997.41,0.00022739,4]
[330293664,1719234692004,-689.81,0.00022739,4]
[330293665,1719234692014,-500.0,0.00022739,4]
[330293666,1719234692024,-1136.57,0.00022739,4]
[330293667,1719234692034,-594.74,0.00022739,4]
[330293668,1719234692044,-500.0,0.00022739,4]
[330293669,1719234692054,-556.0,0.00022739,4]
[330293670,1719234692063,-2120.74,0.00022739,4]
[330293671,1719234692073,-500.0,0.00022739,4]
[330293672,1719234692083,-1028.46,0.00022739,4]
[330293673,1719234692092,-500.0,0.00022739,4]
[330293674,1719234692102,-747.27,0.00022739,4]
[330293675,1719234692111,-500.0,0.00022739,4]
[330293676,1719234692121,-622.5,0.00022739,4]
[330293677,1719234692131,-1256.7,0.00022739,4]
[330293678,1719234692140,-500.0,0.00022739,4]
[330293679,1719234692150,-500.0,0.00022739,4]
[330293680,1719234692164,-1155.94,0.00022739,4]
[330293681,1719234692174,-1233.58,0.00022739,4]
[330293682,1719234692183,-825.41,0.00022739,4]
[330293683,1719234692193,-500.0,0.00022739,4]
[330293684,1719234692202,-1536.4,0.00022739,4]
[330293685,1719234692212,-500.0,0.00022739,4]
[330293686,1719234692221,-616.11,0.00022739,4]
[330293687,1719234692231,-766.48,0.00022739,4]
[330293688,1719234692241,-1447.35,0.00022739,4]
[330293689,1719234692251,-698.01,0.00022739,4]
[330293690,1719234692261,-1293.45,0.00022739,4]
[330293691,1719234692270,-1214.1,0.00022739,4]
[330293692,1719234692280,-500.0,0.00022739,4]
[330293693,1719234692291,-500.0,0.00022739,4]
[330293694,1719234692300,-1161.02,0.00022739,4]
[330293695,1719234692310,-500.0,0.00022739,4]
[330293696,1719234692319,-1624.6,0.00022739,4]
[330293697,1719234692329,-1083.99,0.00022739,4]
[330293698,1719234692338,-500.0,0.00022739,4]
[330293699,1719234692348,-500.0,0.00022739,4]
[330293700,1719234692357,-546.3,0.00022739,4]
[330293701,1719234692366,-746.16,0.00022739,4]
[330293702,1719234692376,-841.88,0.00022739,4]
[330293703,1719234692385,-1918.02,0.00022739,4]
[330293704,1719234692395,-1003.97,0.00022739,4]
[330293705,1719234692405,-500.0,0.00022739,4]
[330293706,1719234692419,-500.0,0.00022739,4]
[330293707,1719234692428,-2470.72,0.00022739,4]
[330293708,1719234692438,-822.29,0.00022739,4]
[330293709,1719234692449,-1351.09,0.00022739,4]
[330293710,1719234692458,-1545.77,0.00022739,4]
[330293711,1719234692467,-1773.63,0.00022739,4]
[330293712,1719234692476,-1522.1,0.00022739,4]
[330293713,1719234692485,-1647.16,0.00022739,4]
[330293714,1719234692494,-536.58,0.00022739,4]
[330293715,1719234692503,-500.0,0.00022739,4]
[330293716,1719234692512,-152.23831,0.00022759,2]
[330293717,1719234692521,-204.63039758,0.00022765,2]
[330293718,1719234692530,-254.36571264,0.00022774,2]
[330293719,1719234692545,-150.65510339,0.00022777,2]
[330293720,1719234692555,-302.18119211,0.00022777,2]
[330293721,1719234692565,-347.78656022,0.00022787,2]
[330293722,1719234692575,-600.0,0.00022797,2]
[330293723,1719234692587,-6164.56149911,0.000228,5]
[330293724,1719234692597,-2000.0,0.000228,2]
[330293725,1719234692609,-2000.0,0.000228,2]
[330293726,1719234692626,-2000.0,0.000228,2]
[330293727,1719234692637,-2000.0,0.000228,2]
[330293728,1719234692646,-2000.0,0.000228,2]
[330293729,1719234692659,-2000.0,0.000228,2]
[330293730,1719234692668,-2000.0,0.000228,2]
[330293731,1719234692677,-2000.0,0.000228,2]
[330293732,1719234692686,-2000.0,0.000228,2]
[330293733,1719234692695,-2000.0,0.000228,2]
[330293734,1719234692703,-166.66666666,0.000228,2]
[330293735,1719234692712,-378.82222413,0.00022806,2]
[330293736,1719234692722,-302.18119211,0.00022818,2]
[330293737,1719234692732,-302.18119211,0.00022825,2]
[330293738,1719234692741,-347.78656022,0.00022831,2]
[330293739,1719234692751,-1298.28,0.00022835,2]
[330293740,1719234692760,-418.39,0.00022835,2]
[330293741,1719234692772,-7922.15470319,0.00022859,2]
[330293742,1719234692781,-150.65510339,0.00022865,2]
[330293743,1719234692791,-161.07088121,0.00022866,2]
[330293744,1719234692800,-155.67775371,0.00022866,2]
[330293745,1719234692810,-150.0,0.0002287,2]
[330293746,1719234692819,-166.66666666,0.0002287,2]
[330293747,1719234692828,-828.70420662,0.0002289,2]
[330293748,1719234692838,-15522.40050415,0.0002289,2]
[330293749,1719234692848,-2381.52263814,0.0002289,2]
[330293750,1719234692857,-318.15881835,0.0002289,2]
[330293751,1719234692866,-10286.92346301,0.0002289,2]
[330293752,1719234692875,-988.11102319,0.00022892,2]
[330293753,1719234692885,-2000.0,0.000229,2]
[330293754,1719234692894,-270.38542091,0.000229,2]
[330293755,1719234692903,-2243.81837853,0.000229,2]
[330293756,1719234692916,-490.0,0.000229,5]
[330293757,1719234692926,-190.0,0.000229,5]
[330293758,1719234692935,-150.0,0.000229,2]
[330293759,1719234692945,-2423.163737,0.00022913,2]
[330293760,1719234692955,-1568.60299825,0.00022914,2]
[330293761,1719234692964,-376.398091,0.00022932,2]
[330293762,1719234692973,-166.66666666,0.00022951,2]
[330293763,1719234692983,-201.61679404,0.00022959,2]
[330293764,1719234692992,-254.36571264,0.0002296,2]
[330293765,1719234693002,-237.8471638,0.00022963,2]
[330293766,1719234693011,-204.63039758,0.00022973,2]
[330293767,1719234693021,-9051.961586,0.00022974,2]
[330293768,1719234693030,-8239.7667497,0.00022974,2]
[330293769,1719234693040,-7427.5719134,0.00022974,2]
[330293770,1719234693049,-6615.3770771,0.00022974,2]
[330293771,1719234693059,-1796.2730287,0.00022974,2]
[330293772,1719234693068,-1635.1009264,0.00022974,2]
[330293773,1719234693078,-1473.9288242,0.00022974,2]
[330293774,1719234693087,-1312.7567219,0.00022974,2]
[330293775,1719234693098,-35052.9917513,0.00022974,2]
[330293776,1719234693107,-31907.8327019,0.00022974,2]
[330293777,1719234693117,-28762.6736525,0.00022974,2]
[330293778,1719234693127,-25617.5146031,0.00022974,2]
[330293779,1719234693136,-954.18700805,0.00022975,2]
[330293780,1719234693146,-8057.66138849,0.00022975,2]
[330293781,1719234693155,-151.0,0.00022989,3]
[330293782,1719234693167,-686.0779865,0.00022989,2]
[330293783,1719234693176,-433319.36919558,0.0002299,5]
[330293784,1719234693544,-156.1593885,0.00019576,2]
[330293785,1719234693555,-627.83,0.00019726,4]
[330293786,1719234693565,-173.61660698,0.0002299,5]
[330293787,1719234693576,-355.72425126,0.0002299,5]
[330293788,1719234693588,-975.50742252,0.0002299,5]
[330293789,1719234693599,-838.65391385,0.0002299,5]
[330293790,1719234693629,-500.0,0.00020821,4]
[330293791,1719234693639,-23.392,0.0002299,5]
[330293792,1719234695796,-176.21286739,0.000139,2]
[330293793,1719234695807,-942.49365573,0.00016288,2]
[330293794,1719234695823,-230.50634427,0.00016288,2]
[330293795,1719234695833,-380.19442756,0.00018778,2]
[330293796,1719234695842,-151.0,0.00019178,2]
[330293797,1719234695851,-500.0,0.00019178,2]
[330293798,1719234695860,-151.0,0.00019452,2]
[330293799,1719234695870,-500.0,0.00019452,4]
[330293800,1719234695879,-500.0,0.00019726,4]
[330293801,1719234695888,-241.47295373,0.0002,4]
[330293802,1719234695900,-386.35704627,0.0002,4]
[330293803,1719234695910,-500.0,0.0002,4]
[330293804,1719234695922,-717.00881294,0.0002026,2]
[330293805,1719234695931,-627.83,0.00020273,4]
[330293806,1719234695940,-168.20891447,0.00020273,4]
[330293807,1719234695949,-627.83,0.00020547,4]
[330293808,1719234695958,-627.83,0.00020821,4]
[330293809,1719234695967,-500.0,0.00021095,4]
[330293810,1719234695976,-627.83,0.00021095,4]
[330293811,1719234695985,-196.20443442,0.00021369,2]
[330293812,1719234695995,-159.70075618,0.00021369,2]
[330293813,1719234696005,-500.0,0.00021369,4]
[330293814,1719234696015,-627.83,0.00021369,4]
[330293815,1719234696025,-519.33971479,0.00021643,4]
[330293816,1719234696034,-627.83,0.00021643,4]
[330293817,1719234696043,-627.83,0.00021917,4]
[330293818,1719234696053,-627.83,0.00022191,4]
[330293819,1719234696063,-627.83,0.00022465,4]
[330293820,1719234696072,-627.83,0.00022739,4]
[330293821,1719234696082,-237642.16985573,0.0002299,5]
[330293822,1719234696194,-1543.757,0.00016968,2]
[330293823,1719234696205,-124.25341287,0.00016968,2]
[330293824,1719234696214,-345.9700623,0.00016968,2]
[330293825,1719234696225,-94.8122663,0.00016968,2]
[330293826,1719234696235,-155.0,0.00018899,2]
[330293827,1719234696243,-155.0,0.00021492,2]
[330293828,1719234696252,-176.21286739,0.0002289,2]
[330293829,1719234696262,-765.67486631,0.0002299,5]
[330293830,1719234696273,-324.95834368,0.0002299,5]
[330293831,1719234706044,-667.77792935,0.00025191,30]
[330293832,1719234706094,-1270.90182978,0.00026912,30]
[330293833,1719234706124,-150.0,0.00027397,30]
[330293834,1719234706149,-200.0,0.00027397,60]
[330293835,1719234706177,-150.0,0.00027534,30]
[330293836,1719234706201,-150.0,0.00027671,30]
[330293837,1719234706225,-150.0,0.00027808,30]
[330293838,1719234706248,-150.0,0.00027945,30]
[330293839,1719234706271,-1550.77409293,0.00028,30]
[330293840,1719234706294,-150.0,0.00028082,30]
[330293841,1719234706317,-150.0,0.00028219,30]
[330293842,1719234706339,-150.0,0.00028356,30]
[330293843,1719234706363,-150.0,0.00028493,30]
[330293844,1719234706387,-150.0,0.0002863,30]
[330293845,1719234706408,-1000.0,0.00028634,30]
[330293846,1719234706435,-150.0,0.00028767,30]
[330293847,1719234706458,-150.0,0.00028904,30]
[330293848,1719234706481,-3243.31444972,0.00029,60]
[330293849,1719234706503,-150.0,0.00029041,30]
[330293850,1719234706526,-150.0,0.00029178,30]
[330293851,1719234706551,-150.0,0.00029187,120]
[330293852,1719234706574,-159.78,0.000293,31]
[330293853,1719234706598,-159.78,0.000293,31]
[330293854,1719234706622,-159.78,0.000293,31]
[330293855,1719234706646,-159.78,0.000293,31]
[330293856,1719234706670,-159.78,0.000293,31]
[330293857,1719234706693,-150.0,0.00029315,30]
[330293858,1719234706714,-1191.72609757,0.00029316,30]
[330293859,1719234706737,-165.68,0.00029399,30]
[330293860,1719234706759,-461.23815575,0.000294,30]
[330293861,1719234706782,-1000.0,0.0002942,30]
[330293862,1719234706804,-10000.0,0.00029424,30]
[330293863,1719234706826,-10000.0,0.00029424,30]
[330293864,1719234706847,-6596.0,0.00029424,30]
[330293865,1719234706870,-150.0,0.00029452,30]
[330293866,1719234706901,-150.0,0.00029555,120]
[330293867,1719234706925,-150.0,0.00029584,120]
[330293868,1719234706947,-150.0,0.00029589,30]
[330293869,1719234706972,-150.0,0.00029726,30]
[330293870,1719234706994,-150.0,0.00029753,120]
[330293871,1719234707017,-150.0,0.00029787,120]
[330293872,1719234707040,-228.30350931,0.00029863,30]
[330293873,1719234707064,-1146.44684562,0.00029999,30]
[330293874,1719234707087,-285.83997765,0.0003,30]
[330293875,1719234707108,-418.66907053,0.0003,30]
[330293876,1719234707131,-1404.49121719,0.0003,60]
[330293877,1719234707152,-250.0,0.0003,30]
[330293878,1719234707175,-250.0,0.0003,30]
[330293879,1719234707196,-250.0,0.0003,30]
[330293880,1719234707222,-250.0,0.0003,30]
[330293881,1719234707245,-150.0,0.00030069,120]
[330293882,1719234707442,-200.0,0.00030137,60]
[330293883,1719234707467,-150.0,0.00030225,120]
[330293884,1719234707491,-159.78,0.000303,31]
[330293885,1719234707515,-159.78,0.000303,31]
[330293886,1719234707538,-375.0,0.00030713,120]
[330293887,1719234707565,-250.0,0.000308,30]
[330293888,1719234707590,-150.0,0.0003087,120]
[330293889,1719234707613,-150.0,0.00031267,120]
[330293890,1719234707637,-159.78,0.000314,31]
[330293891,1719234707661,-159.78,0.000314,31]
[330293892,1719234707687,-150.0,0.00031401,120]
[330293893,1719234707710,-150.0,0.00031473,120]
[330293894,1719234707734,-200.0,0.00032202,120]
[330293895,1719234707757,-262.31871861,0.00032393,40]
[330293896,1719234707783,-159.78,0.000324,31]
[330293897,1719234707807,-159.78,0.000324,31]
[330293898,1719234707830,-375.0,0.00032465,120]
[330293899,1719234707853,-310.87721194,0.0003263,30]
[330293900,1719234707876,-1000.0,0.00032766,120]
[330293901,1719234707898,-310.87721194,0.00032767,30]
[330293902,1719234707921,-200.0,0.00032802,120]
[330293903,1719234707945,-150.0,0.00032814,120]
[330293904,1719234707969,-535.72546164,0.00032876,30]
[330293905,1719234707993,-200.0,0.00032877,60]
[330293906,1719234708017,-4000.0,0.00032877,30]
[330293907,1719234708042,-310.87721194,0.00032904,30]
[330293908,1719234708065,-154.22479112,0.00033,30]
[330293909,1719234708087,-159.10082919,0.00033,120]
[330293910,1719234708113,-310.87721194,0.00033041,30]
[330293911,1719234708136,-1885.63,0.00033151,120]
[330293912,1719234708160,-2282.66,0.00033151,120]
[330293913,1719234708183,-310.87721194,0.00033178,30]
[330293914,1719234708207,-150.0,0.00033293,120]
[330293915,1719234708230,-310.87721194,0.00033315,30]
[330293916,1719234708252,-200.0,0.00033402,120]
[330293917,1719234708275,-310.87721194,0.00033452,30]
[330293918,1719234708300,-159.78,0.000335,31]
[330293919,1719234708324,-159.78,0.000335,31]
[330293920,1719234708347,-310.87721194,0.00033589,30]
[330293921,1719234708370,-310.87721194,0.00033726,30]
[330293922,1719234708393,-150.0,0.00033769,120]
[330293923,1719234708417,-310.87721194,0.00033863,30]
[330293924,1719234708439,-310.87721194,0.00034,30]
[330293925,1719234708462,-310.87721194,0.00034137,30]
[330293926,1719234708485,-375.0,0.00034217,120]
[330293927,1719234708508,-310.87721194,0.00034274,30]
[330293928,1719234708531,-1000.0,0.00034366,120]
[330293929,1719234708558,-200.0,0.00034383,40]
[330293930,1719234708582,-310.87721194,0.00034411,30]
[330293931,1719234708604,-150.0,0.00034512,120]
[330293932,1719234708627,-200.0,0.00034532,120]
[330293933,1719234708650,-310.87721194,0.00034548,30]
[330293934,1719234708674,-150.0,0.00034551,120]
[330293935,1719234708697,-419.03021873,0.000348,30]
[330293936,1719234708718,-1000.0,0.000348,30]
[330293937,1719234708740,-200.0,0.00034914,120]
[330293938,1719234708761,-652.45940549,0.00035,30]
[330293939,1719234708786,-217.9620493,0.00035,120]
[330293940,1719234708808,-1089454.81113857,0.00035,30]
[330293941,1719234708829,-250.0,0.00035,30]
[330293942,1719234708850,-290.58622392,0.00035,30]
[330293943,1719234708873,-200.50557575,0.00035,120]
[330293944,1719234708895,-200.0,0.0003501,120]
[330293945,1719234708920,-150.0,0.00035165,120]
[330293946,1719234708942,-200.0,0.00035488,120]
[330293947,1719234708964,-2644.77,0.00035616,90]
[330293948,1719234708988,-2644.77,0.00035616,90]
[330293949,1719234709011,-2644.77,0.00035616,90]
[330293950,1719234709034,-2644.77,0.00035616,90]
[330293951,1719234709056,-2644.77,0.00035616,90]
[330293952,1719234709080,-2644.77,0.00035616,90]
[330293953,1719234709103,-2644.77,0.00035616,90]
[330293954,1719234709126,-2644.77,0.00035616,90]
[330293955,1719234709149,-2644.77,0.00035616,90]
[330293956,1719234709173,-2644.77,0.00035616,90]
[330293957,1719234709195,-2644.77,0.00035616,90]
[330293958,1719234709219,-2644.77,0.00035616,90]
[330293959,1719234709241,-2644.77,0.00035616,90]
[330293960,1719234709263,-2644.77,0.00035616,90]
[330293961,1719234709286,-2644.77,0.00035616,90]
[330293962,1719234709308,-2644.77,0.00035616,90]
[330293963,1719234709331,-2644.77,0.00035616,90]
[330293964,1719234709354,-2644.77,0.00035616,90]
[330293965,1719234709377,-2644.77,0.00035616,90]
[330293966,1719234709400,-2644.77,0.00035616,90]
[330293967,1719234709423,-2644.77,0.00035616,90]
[330293968,1719234709446,-2644.77,0.00035616,90]
[330293969,1719234709469,-2644.77,0.00035616,90]
[330293970,1719234709491,-2644.8996392,0.00035616,90]
[330293971,1719234709514,-200.0,0.00035616,60]
[330293972,1719234709536,-200.0,0.0003589,50]
[330293973,1719234709563,-200.0,0.00035966,120]
[330293974,1719234709587,-1000.0,0.00035966,120]
[330293975,1719234709764,-375.0,0.00035969,120]
[330293976,1719234709789,-150.0,0.00035987,120]
[330293977,1719234709813,-465.0,0.00036,120]
[330293978,1719234709837,-150.0,0.0003707,120]
[330293979,1719234709862,-200.0,0.00037141,120]
[330293980,1719234709886,-200.0,0.00037397,60]
[330293981,1719234709910,-150.0,0.00037791,120]
[330293982,1719234709935,-2022.29581292,0.000378,70]
[330293983,1719234709959,-150.0,0.00037803,120]
[330293984,1719234709983,-150.0,0.00037934,120]
[330293985,1719234710007,-150.0,0.00037941,120]
[330293986,1719234710032,-1178.69292167,0.00038,30]
[330293987,1719234710055,-517.95687671,0.00038,90]
[330293988,1719234710080,-1000.0,0.00038,120]
[330293989,1719234710104,-200.0,0.00038315,120]
[330293990,1719234710129,-200.0,0.00038356,60]
[330293991,1719234710153,-674.91957754,0.000384,33]
[330293992,1719234710180,-605.36207641,0.000387,30]
[330293993,1719234710204,-3625.22264708,0.000388,45]
[330293994,1719234710227,-200.0,0.00038904,70]
[330293995,1719234710250,-167.08205617,0.00039,30]
[330293996,1719234710273,-694.85757286,0.00039,120]
[330293997,1719234710298,-150.0,0.00039103,120]
[330293998,1719234710324,-150.0,0.00039383,120]
[330293999,1719234710347,-200.0,0.0003949,120]
[330294000,1719234710370,-150.0,0.00039837,120]
[330294001,1719234710393,-294.60401667,0.0003985,30]
[330294002,1719234710421,-1000.0,0.00039898,120]
[330294003,1719234710447,-8043.77198854,0.00039998,60]
[330294004,1719234710474,-50000.0,0.0004,30]
[330294005,1719234710498,-2011.46,0.0004,30]
[330294006,1719234710521,-477.12749073,0.0004,30]
[330294007,1719234710544,-281.4421998,0.0004,120]
[330294008,1719234710571,-905.70121506,0.0004,120]
[330294009,1719234710594,-541.8436313,0.0004,30]
[330294010,1719234710616,-367.31217447,0.0004,120]
[330294011,1719234710642,-215.31340754,0.0004,30]
[330294012,1719234710664,-341.89382197,0.0004,30]
[330294013,1719234710693,-410.0,0.0004,30]
[330294014,1719234710716,-430.92013627,0.0004,120]
[330294015,1719234710739,-1025.52948633,0.0004,60]
[330294016,1719234710761,-184.47937894,0.0004,30]
[330294017,1719234710786,-1162.72791237,0.0004,30]
[330294018,1719234710810,-384.65903954,0.0004,30]
[330294019,1719234710833,-1000.0,0.0004,120]
[330294020,1719234710857,-230.9184547,0.0004,30]
[330294021,1719234710879,-655.28491735,0.0004,120]